fUSD/lending_fUSD_20240919
["ID","MTS","AMOUNT","RATE_DAILY","PERIOD"]
[338535175,1726721492625,-3860.9232015,0.0001499,2]
[338535176,1726721492634,-64409.7971348,0.0001499,2]
[338535177,1726721492643,-53489.756363,0.0001499,2]
[338535178,1726721492652,-42569.7155912,0.0001499,2]
[338535179,1726721492661,-31649.6748195,0.0001499,2]
[338535180,1726721492670,-20729.6340477,0.0001499,2]
[338535181,1726721492679,-151.0,0.00014993,2]
[338535182,1726721492688,-155556.53279338,0.00015,2]
[338535183,1726721493144,-51832.92783422,0.00015,2]
[338535184,1726721493167,-674.33,0.00013994,2]
[338535185,1726721493178,-567.09,0.00014816,2]
[338535186,1726721493195,-686.39,0.00014816,2]
[338535187,1726721493205,-15111.3160609,0.00015,2]
[338535188,1726721493216,-2566.54677904,0.00015,2]
[338535189,1726721504123,-500.0,0.00012899,2]
[338535190,1726721504133,-500.0,0.00012899,2]
[338535191,1726721504143,-500.0,0.00012899,2]
[338535192,1726721504151,-500.0,0.00012899,2]
[338535193,1726721504161,-500.0,0.00012996,2]
[338535194,1726721504170,-500.0,0.00012998,2]
[338535195,1726721504179,-500.0,0.00012998,2]
[338535196,1726721504188,-500.0,0.00012998,2]
[338535197,1726721504197,-500.0,0.00012999,2]
[338535198,1726721504207,-500.0,0.00012999,2]
[338535199,1726721504217,-553.0,0.00013173,2]
[338535200,1726721504226,-439.09,0.00013173,2]
[338535201,1726721504235,-205.74,0.00013173,2]
[338535202,1726721504244,-500.0,0.00013173,2]
[338535203,1726721504254,-524.46,0.00013173,2]
[338535204,1726721504262,-500.0,0.0001327,2]
[338535205,1726721504272,-500.0,0.00013272,2]
[338535206,1726721504281,-500.0,0.00013272,2]
[338535207,1726721504290,-500.0,0.00013272,2]
[338535208,1726721504299,-500.0,0.00013273,2]
[338535209,1726721504308,-500.0,0.00013447,2]
[338535210,1726721504317,-500.0,0.00013544,2]
[338535211,1726721504327,-500.0,0.00013546,2]
[338535212,1726721504336,-500.0,0.00013546,2]
[338535213,1726721504345,-175.53,0.00013546,2]
[338535214,1726721504355,-500.0,0.00013547,2]
[338535215,1726721504364,-217.25,0.00013721,2]
[338535216,1726721504373,-500.0,0.00013818,2]
[338535217,1726721504382,-500.0,0.0001382,2]
[338535218,1726721504391,-344.38,0.0001382,2]
[338535219,1726721504400,-500.0,0.00013821,2]
[338535220,1726721504409,-753.25,0.00014055,2]
[338535221,1726721504419,-535.9,0.00014092,2]
[338535222,1726721504428,-500.0,0.00014094,2]
[338535223,1726721504438,-1565.1,0.00014095,2]
[338535224,1726721504447,-500.0,0.00014095,2]
[338535225,1726721504456,-674.33,0.00014268,2]
[338535226,1726721504466,-500.0,0.00014368,2]
[338535227,1726721504476,-1565.1,0.00014369,2]
[338535228,1726721504485,-674.33,0.00014542,2]
[338535229,1726721504494,-2108.0,0.00014542,2]
[338535230,1726721504505,-568.34,0.00014642,2]
[338535231,1726721504514,-1565.1,0.00014643,2]
[338535232,1726721504523,-674.33,0.00014816,2]
[338535233,1726721504533,-2108.0,0.00014816,2]
[338535234,1726721504542,-1565.1,0.00014917,2]
[338535235,1726721504551,-72641.94525197,0.00015,2]
[338535236,1726721504991,-126370.1312616,0.00015,2]
[338535237,1726721507654,500.0,0.00011264,2]
[338535238,1726721534185,250.0,0.00012737,2]
[338535239,1726721553903,161.68,0.0001266,2]
[338535240,1726721554108,161.68,0.00012681,2]
[338535241,1726721554327,161.68,0.00012702,2]
[338535242,1726721554596,161.68,0.00012723,2]
[338535243,1726721569177,250.0,0.0001266,2]
[338535244,1726721671466,200.0,0.00012594,2]
[338535245,1726721732796,335.35,0.00010702,2]
[338535246,1726721734083,158.82,0.0001262,2]
[338535247,1726721816400,10004.7,0.00012416,2]
[338535248,1726721862583,500.0,0.00011264,2]
[338535249,1726721864178,500.0,0.00012634,2]
[338535250,1726721864708,480.27,0.00012405,2]
[338535251,1726721868266,347.34,0.00012405,2]
[338535252,1726721910698,500.0,0.00011264,2]
[338535253,1726721913650,-225.0824,0.00012799,2]
[338535254,1726721913673,-186.27449136,0.00012799,2]
[338535255,1726721913693,-2500.0,0.00012896,2]
[338535256,1726721913714,-150.0,0.00012897,2]
[338535257,1726721913735,-500.0064289,0.00012898,2]
[338535258,1726721913755,-500.0,0.00012898,2]
[338535259,1726721913776,-338.63667974,0.00012898,2]
[338535260,1726721945743,1882.74,0.00012356,2]
[338535261,1726721947988,176.43,0.00012356,2]
[338535262,1726721952912,155.2,0.00010959,2]
[338535263,1726721996949,513.2,0.00012332,2]
[338535264,1726722056810,250.0,0.00012332,2]
[338535265,1726722098584,250.0,0.00012279,2]
[338535266,1726722160681,916.46,0.00012295,2]
[338535267,1726722288379,333.76,0.00010346,2]
[338535268,1726722288740,333.76,0.0001261,2]
[338535269,1726722355613,1000.0,0.00012285,2]
[338535284,1726722430053,400.0,0.000127,4]
[338535285,1726722533081,176.43,0.00012244,2]
[338535286,1726722544656,250.0,0.00012244,2]
[338535289,1726722591949,157.13,0.00010959,2]
[338535294,1726722618740,600.0,0.00010168,2]
[338535295,1726722620342,600.0,0.00011538,2]
[338535296,1726722625108,450.86,0.00012272,2]
[338535297,1726722629191,203.01,0.0001215,2]
[338535304,1726722631394,-328.8626243,0.00012798,2]
[338535305,1726722631411,-1424.13566466,0.00012799,2]
[338535306,1726722631434,-5267.81713534,0.00012799,2]
[338535307,1726722631445,-800.0,0.000128,4]
[338535308,1726722631455,-2000.0,0.000128,2]
[338535309,1726722631464,-2000.0,0.000128,3]
[338535310,1726722631473,-152.34,0.00012889,2]
[338535311,1726722631483,-150.0,0.00012896,2]
[338535312,1726722631492,-1718.92,0.00012897,2]
[338535313,1726722631501,-871.33,0.00012897,2]
[338535314,1726722631758,-723.7,0.00012897,2]
[338535315,1726722631768,-733.34,0.00012897,2]
[338535316,1726722631778,-1413.86,0.00012897,2]
[338535317,1726722631787,-500.0,0.00012897,2]
[338535318,1726722631796,-770.7,0.00012897,2]
[338535319,1726722631808,-3001.15,0.00012897,2]
[338535320,1726722631817,-500.0,0.00012897,2]
[338535321,1726722631826,-7530.09,0.00012897,2]
[338535322,1726722631836,-3998.34,0.00012897,2]
[338535323,1726722631845,-532.85,0.00012897,2]
[338535324,1726722631854,-583.04,0.00012897,2]
[338535325,1726722631863,-500.0,0.00012897,2]
[338535326,1726722631872,-500.0,0.00012897,2]
[338535327,1726722631882,-500.0,0.00012897,2]
[338535328,1726722631891,-1213.31147414,0.00012897,2]
[338535329,1726722631908,-997.15704664,0.00012897,2]
[338535330,1726722631987,-2078.83147922,0.00012897,2]
[338535331,1726722631998,-500.0,0.00012897,2]
[338535332,1726722632007,-5005.48,0.00012897,2]
[338535333,1726722632016,-39624.06,0.00012897,2]
[338535334,1726722632025,-4146.24,0.00012897,2]
[338535335,1726722632034,-6380.51,0.00012897,2]
[338535336,1726722632043,-667.39,0.00012897,2]
[338535337,1726722632052,-1240.26,0.00012897,2]
[338535338,1726722632061,-500.0,0.00012897,2]
[338535339,1726722632070,-500.0,0.00012897,2]
[338535340,1726722632079,-500.0,0.00012897,2]
[338535341,1726722632089,-500.0,0.00012897,2]
[338535342,1726722632098,-178.84028189,0.00012897,2]
[338535343,1726722632107,-500.0,0.00012897,2]
[338535344,1726722632116,-190.24395901,0.00012897,2]
[338535345,1726722632125,-500.0,0.00012897,2]
[338535346,1726722632135,-500.0,0.00012897,2]
[338535347,1726722632144,-500.0,0.00012897,2]
[338535348,1726722632155,-500.0,0.00012897,2]
[338535349,1726722632164,-500.0,0.00012897,2]
[338535350,1726722632173,-556.20211742,0.00012897,2]
[338535351,1726722632183,-500.0,0.00012897,2]
[338535352,1726722632192,-500.0,0.00012897,2]
[338535353,1726722632202,-500.0,0.00012897,2]
[338535354,1726722632211,-500.0,0.00012897,2]
[338535355,1726722632220,-500.0,0.00012897,2]
[338535356,1726722632229,-500.0,0.00012897,2]
[338535357,1726722632239,-500.0,0.00012897,2]
[338535358,1726722632248,-500.0,0.00012897,2]
[338535359,1726722632257,-500.0,0.00012897,2]
[338535360,1726722632267,-500.0,0.00012897,2]
[338535361,1726722632276,-500.0,0.00012897,2]
[338535362,1726722632286,-500.0,0.00012897,2]
[338535363,1726722632295,-686.97,0.00012897,2]
[338535364,1726722632305,-5868.86,0.00012897,2]
[338535365,1726722632314,-3832.76,0.00012897,2]
[338535366,1726722632324,-5109.36,0.00012897,2]
[338535367,1726722632334,-500.0,0.00012897,2]
[338535368,1726722632344,-3206.49,0.00012897,2]
[338535369,1726722632357,-5861.7,0.00012897,2]
[338535370,1726722632367,-500.0,0.00012897,2]
[338535371,1726722632377,-996.18,0.00012897,2]
[338535372,1726722632387,-757.21,0.00012897,2]
[338535373,1726722632398,-11451.94,0.00012897,2]
[338535374,1726722632408,-500.0,0.00012897,2]
[338535375,1726722632417,-4249.05,0.00012897,2]
[338535376,1726722632427,-500.0,0.00012897,2]
[338535377,1726722632437,-500.0,0.00012897,2]
[338535378,1726722632446,-500.0,0.00012897,2]
[338535379,1726722632456,-7493.17,0.00012897,2]
[338535380,1726722632466,-1087.99,0.00012897,2]
[338535381,1726722632475,-1534.41,0.00012897,2]
[338535382,1726722632484,-4907.77,0.00012897,2]
[338535383,1726722632493,-1967.61,0.00012897,2]
[338535384,1726722632502,-1591.13,0.00012897,2]
[338535385,1726722632512,-500.0,0.00012897,2]
[338535386,1726722632521,-3281.75,0.00012897,2]
[338535387,1726722632530,-600.49,0.00012897,2]
[338535388,1726722632539,-500.0,0.00012897,2]
[338535389,1726722632548,-2455.14,0.00012897,2]
[338535390,1726722632557,-500.0,0.00012897,2]
[338535391,1726722632567,-2390.61,0.00012897,2]
[338535392,1726722632576,-1408.36,0.00012897,2]
[338535393,1726722632585,-3147.88,0.00012897,2]
[338535394,1726722632595,-884.89,0.00012897,2]
[338535395,1726722632604,-613.69,0.00012897,2]
[338535396,1726722632613,-550.02,0.00012897,2]
[338535397,1726722632622,-500.0,0.00012897,2]
[338535398,1726722632631,-348.18957005,0.00012897,2]
[338535399,1726722632643,-681.19042995,0.00012897,2]
[338535400,1726722632654,-1018.9386661,0.00012898,2]
[338535401,1726722632665,-1201.6813339,0.00012898,2]
[338535402,1726722632674,-1299.96,0.00012898,2]
[338535403,1726722632684,-501.15,0.00012898,2]
[338535404,1726722632693,-1361.45,0.00012898,2]
[338535405,1726722632702,-500.0,0.00012898,2]
[338535406,1726722632711,-831.74,0.00012898,2]
[338535407,1726722632720,-500.0,0.00012898,2]
[338535408,1726722632729,-500.0,0.00012898,2]
[338535409,1726722632738,-500.0,0.00012898,2]
[338535410,1726722632748,-500.0,0.00012898,2]
[338535411,1726722632757,-500.0,0.00012898,2]
[338535412,1726722632767,-500.0064289,0.00012898,2]
[338535413,1726722632776,-500.0,0.00012898,2]
[338535414,1726722632785,-500.0,0.00012898,2]
[338535415,1726722632794,-500.0,0.00012898,2]
[338535416,1726722632803,-500.0,0.00012898,2]
[338535417,1726722632812,-663.95,0.00012898,2]
[338535418,1726722632821,-500.0,0.00012898,2]
[338535419,1726722632830,-500.00643944,0.00012898,2]
[338535420,1726722632839,-2044.96,0.00012898,2]
[338535421,1726722632848,-500.0,0.00012898,2]
[338535422,1726722632858,-599.03,0.00012898,2]
[338535423,1726722632867,-696.72,0.00012898,2]
[338535424,1726722632876,-500.0,0.00012898,2]
[338535425,1726722632885,-500.0,0.00012898,2]
[338535426,1726722632894,-2696.44,0.00012898,2]
[338535427,1726722632905,-500.0,0.00012898,2]
[338535428,1726722632914,-187.15201147,0.00012898,2]
[338535429,1726722632923,-500.0,0.00012898,2]
[338535430,1726722632932,-500.0,0.00012898,2]
[338535431,1726722632941,-500.0,0.00012898,2]
[338535432,1726722632951,-500.0,0.00012898,2]
[338535433,1726722632960,-500.0,0.00012898,2]
[338535434,1726722632969,-1556.65,0.00012898,2]
[338535435,1726722632979,-1419.15,0.00012898,2]
[338535436,1726722632988,-500.0,0.00012898,2]
[338535437,1726722632998,-500.0,0.00012898,2]
[338535438,1726722633007,-500.0,0.00012898,2]
[338535439,1726722633016,-500.0,0.00012898,2]
[338535440,1726722633025,-2775.91,0.00012898,2]
[338535441,1726722633034,-500.0,0.00012898,2]
[338535442,1726722633043,-500.0,0.00012898,2]
[338535443,1726722633052,-500.0,0.00012898,2]
[338535444,1726722633061,-500.00644458,0.00012898,2]
[338535445,1726722633070,-308.86388168,0.00012898,2]
[338535446,1726722633091,-191.13611832,0.00012898,2]
[338535447,1726722633100,-391.78892905,0.00012898,2]
[338535448,1726722633115,-108.21107095,0.00012898,2]
[338535449,1726722633125,-500.0,0.00012898,2]
[338535450,1726722633134,-500.0,0.00012898,2]
[338535451,1726722633143,-500.0,0.00012898,2]
[338535452,1726722633156,-1686.13,0.00012898,2]
[338535453,1726722633166,-500.0,0.00012898,2]
[338535454,1726722633176,-500.0,0.00012898,2]
[338535455,1726722633186,-500.0,0.00012898,2]
[338535456,1726722633196,-323.98328875,0.00012898,2]
[338535457,1726722633221,-176.01671125,0.00012898,2]
[338535458,1726722633230,-1148.95,0.00012898,2]
[338535459,1726722633240,-440.28500785,0.00012898,2]
[338535464,1726722637420,-2480.02242408,0.00012897,2]
[338535465,1726722637478,-1941.06757592,0.00012897,2]
[338535466,1726722637488,-698.91499215,0.00012898,2]
[338535467,1726722637498,-500.0,0.00012898,2]
[338535468,1726722637508,-499.95934133,0.00012898,2]
[338535469,1726722637518,-500.0,0.00012898,2]
[338535470,1726722637527,-1159.95527953,0.00012898,2]
[338535471,1726722637539,-264.75472047,0.00012898,2]
[338535472,1726722637548,-500.0,0.00012898,2]
[338535473,1726722637557,-500.0,0.00012898,2]
[338535474,1726722637565,-500.0,0.00012898,2]
[338535475,1726722637574,-500.0,0.00012898,2]
[338535476,1726722637583,-647.15,0.00012898,2]
[338535477,1726722637593,-499.95933041,0.00012898,2]
[338535478,1726722637603,-408.90262839,0.00012898,2]
[338535479,1726722637628,-91.09737161,0.00012898,2]
[338535480,1726722637638,-668.23,0.00012898,2]
[338535481,1726722637647,-499.93519395,0.00012898,2]
[338535482,1726722637658,-500.0,0.00012898,2]
[338535483,1726722637667,-1677.26,0.00012898,2]
[338535484,1726722637677,-2050.0,0.00012898,2]
[338535485,1726722637686,-208.77736862,0.00012898,2]
[338535486,1726722637698,-483.52263138,0.00012898,2]
[338535487,1726722637707,-500.0,0.00012898,2]
[338535488,1726722637717,-500.0,0.00012898,2]
[338535489,1726722637727,-500.0,0.00012898,2]
[338535490,1726722637737,-500.0,0.00012898,2]
[338535491,1726722637747,-1600.12,0.00012898,2]
[338535493,1726722637757,-500.0,0.00012898,2]
[338535495,1726722637767,-1453.58,0.00012898,2]
[338535497,1726722637776,-1032.69,0.00012898,2]
[338535499,1726722637786,-500.0,0.00012898,2]
[338535501,1726722637795,-500.0,0.00012898,2]
[338535503,1726722637804,-1036.91,0.00012898,2]
[338535505,1726722637815,-500.0,0.00012898,2]
[338535507,1726722637825,-500.0,0.00012898,2]
[338535509,1726722637835,-667.52,0.00012898,2]
[338535511,1726722637844,-500.0,0.00012898,2]
[338535513,1726722637854,-500.0,0.00012898,2]
[338535515,1726722637863,-500.0,0.00012898,2]
[338535517,1726722637873,-242.87,0.00012898,2]
[338535519,1726722637883,-500.0,0.00012898,2]
[338535521,1726722637892,-268.01521125,0.00012898,2]
[338535523,1726722637904,-966.08,0.00012898,2]
[338535525,1726722637913,-500.0,0.00012898,2]
[338535527,1726722637923,-500.0,0.00012898,2]
[338535529,1726722637932,-1086.96,0.00012898,2]
[338535530,1726722637941,-1260.74,0.00012898,2]
[338535533,1726722637951,-500.0,0.00012898,2]
[338535535,1726722637961,-500.0,0.00012898,2]
[338535537,1726722637971,-500.0,0.00012898,2]
[338535538,1726722637980,-1546.59,0.00012898,2]
[338535540,1726722637989,-738.99,0.00012898,2]
[338535542,1726722637999,-500.0,0.00012898,2]
[338535544,1726722638009,-500.0,0.00012898,2]
[338535546,1726722638018,-1982.03,0.00012898,2]
[338535547,1726722638028,-500.0,0.00012898,2]
[338535549,1726722638038,-1193.1,0.00012898,2]
[338535551,1726722638047,-17919.21,0.00012898,2]
[338535553,1726722638056,-1763.66,0.00012898,2]
[338535555,1726722638065,-1422.29,0.00012898,2]
[338535556,1726722638074,-500.0,0.00012898,2]
[338535559,1726722638084,-500.0,0.00012898,2]
[338535561,1726722638093,-2097.12,0.00012898,2]
[338535563,1726722638103,-500.0,0.00012898,2]
[338535565,1726722638112,-500.0,0.00012898,2]
[338535566,1726722638122,-791.81,0.00012898,2]
[338535569,1726722638132,-500.0,0.00012898,2]
[338535570,1726722638141,-500.0,0.00012898,2]
[338535573,1726722638152,-593.98,0.00012898,2]
[338535574,1726722638161,-952.99,0.00012898,2]
[338535575,1726722638171,-639.94,0.00012898,2]
[338535576,1726722638180,-500.0,0.00012898,2]
[338535577,1726722638190,-11427.561,0.00012898,2]
[338535578,1726722638199,-500.0,0.00012898,2]
[338535579,1726722638209,-617.3,0.00012898,2]
[338535580,1726722638218,-592.37,0.00012898,2]
[338535581,1726722638228,-500.0,0.00012898,2]
[338535582,1726722638239,-500.0,0.00012898,2]
[338535583,1726722638248,-500.0,0.00012898,2]
[338535584,1726722638257,-500.0,0.00012898,2]
[338535585,1726722638267,-1031.94,0.00012898,2]
[338535586,1726722638276,-500.0,0.00012898,2]
[338535587,1726722638285,-500.0,0.00012898,2]
[338535588,1726722638295,-500.0,0.00012898,2]
[338535589,1726722638304,-500.0,0.00012898,2]
[338535590,1726722638314,-500.0,0.00012898,2]
[338535591,1726722638323,-500.0,0.00012898,2]
[338535592,1726722638333,-1982.15,0.00012898,2]
[338535593,1726722638343,-500.0,0.00012898,2]
[338535594,1726722638355,-738.0,0.00012898,2]
[338535595,1726722638365,-500.0,0.00012898,2]
[338535596,1726722638374,-500.0,0.00012898,2]
[338535597,1726722638384,-500.0,0.00012898,2]
[338535598,1726722638393,-611.34,0.00012898,2]
[338535599,1726722638404,-500.0,0.00012898,2]
[338535600,1726722638413,-500.0,0.00012898,2]
[338535601,1726722638422,-500.0,0.00012898,2]
[338535602,1726722638432,-500.0,0.00012898,2]
[338535603,1726722638443,-500.0,0.00012898,2]
[338535604,1726722638452,-500.0,0.00012898,2]
[338535605,1726722638461,-500.0,0.00012898,2]
[338535606,1726722638470,-500.0,0.00012898,2]
[338535607,1726722638480,-1154.57,0.00012898,2]
[338535608,1726722638489,-500.0,0.00012898,2]
[338535609,1726722638498,-500.0,0.00012898,2]
[338535610,1726722638508,-500.0,0.00012898,2]
[338535611,1726722638517,-500.0,0.00012898,2]
[338535612,1726722638527,-500.0,0.00012898,2]
[338535613,1726722638537,-530.38679442,0.00012898,2]
[338535614,1726722638546,-1010.86,0.00012898,2]
[338535615,1726722638555,-500.0,0.00012898,2]
[338535616,1726722638564,-500.0,0.00012898,2]
[338535617,1726722638573,-500.0,0.00012898,2]
[338535618,1726722638583,-500.0,0.00012898,2]
[338535619,1726722638592,-1313.57,0.00012898,2]
[338535620,1726722638601,-500.0,0.00012898,2]
[338535621,1726722638611,-500.0,0.00012898,2]
[338535622,1726722638620,-500.0,0.00012898,2]
[338535623,1726722638630,-1294.85,0.00012898,2]
[338535624,1726722638639,-500.0,0.00012898,2]
[338535625,1726722638652,-1490.92,0.00012898,2]
[338535626,1726722638661,-901.2,0.00012898,2]
[338535627,1726722638670,-500.0,0.00012898,2]
[338535628,1726722638680,-500.0,0.00012898,2]
[338535629,1726722638689,-500.0,0.00012898,2]
[338535630,1726722638698,-500.0,0.00012898,2]
[338535631,1726722638707,-500.0,0.00012898,2]
[338535632,1726722638718,-2596.33,0.00012898,2]
[338535633,1726722638727,-500.0,0.00012898,2]
[338535634,1726722638736,-500.0,0.00012898,2]
[338535635,1726722638745,-500.0,0.00012898,2]
[338535636,1726722638755,-500.0,0.00012898,2]
[338535637,1726722638764,-500.0,0.00012898,2]
[338535638,1726722638774,-500.0,0.00012898,2]
[338535639,1726722638784,-500.0,0.00012898,2]
[338535640,1726722638793,-2566.32,0.00012898,2]
[338535641,1726722638803,-269.35293678,0.00012898,2]
[338535642,1726722638812,-500.0,0.00012898,2]
[338535643,1726722638821,-500.0,0.00012898,2]
[338535644,1726722638831,-2606.51,0.00012898,2]
[338535645,1726722638840,-500.0,0.00012898,2]
[338535646,1726722638850,-186.84923104,0.00012898,2]
[338535647,1726722638859,-347.38759421,0.00012898,2]
[338535648,1726722638869,-500.0,0.00012898,2]
[338535649,1726722639129,-500.0,0.00012898,2]
[338535650,1726722639139,-500.0,0.00012898,2]
[338535651,1726722639149,-587.13,0.00012898,2]
[338535652,1726722639160,-1820.3,0.00012898,2]
[338535653,1726722639170,-500.0,0.00012898,2]
[338535654,1726722639180,-500.0,0.00012898,2]
[338535655,1726722639189,-500.0,0.00012898,2]
[338535656,1726722639199,-500.0,0.00012898,2]
[338535657,1726722639209,-797.61,0.00012898,2]
[338535658,1726722639218,-835.29,0.00012898,2]
[338535659,1726722639228,-500.0,0.00012898,2]
[338535660,1726722639237,-5578.12,0.00012898,2]
[338535661,1726722639247,-500.0,0.00012898,2]
[338535662,1726722639256,-500.0,0.00012898,2]
[338535663,1726722639266,-500.0,0.00012898,2]
[338535664,1726722639276,-500.0,0.00012898,2]
[338535665,1726722639285,-2219.31,0.00012898,2]
[338535666,1726722639294,-866.04,0.00012898,2]
[338535667,1726722639304,-500.0,0.00012898,2]
[338535668,1726722639313,-500.0,0.00012898,2]
[338535669,1726722639322,-500.0,0.00012898,2]
[338535670,1726722639332,-500.0,0.00012898,2]
[338535671,1726722639341,-1900.82,0.00012898,2]
[338535672,1726722639351,-675.85,0.00012898,2]
[338535673,1726722639363,-500.0,0.00012898,2]
[338535674,1726722639372,-1436.92,0.00012898,2]
[338535676,1726722639382,-500.0,0.00012898,2]
[338535677,1726722639391,-500.0,0.00012898,2]
[338535678,1726722639404,-500.0,0.00012898,2]
[338535679,1726722639413,-500.0,0.00012898,2]
[338535680,1726722639422,-500.0,0.00012898,2]
[338535681,1726722639433,-500.0,0.00012898,2]
[338535682,1726722639442,-500.0,0.00012898,2]
[338535683,1726722639452,-1141.01,0.00012898,2]
[338535684,1726722639461,-500.0,0.00012898,2]
[338535685,1726722639470,-677.88,0.00012898,2]
[338535686,1726722639479,-500.0,0.00012898,2]
[338535687,1726722639488,-500.0,0.00012898,2]
[338535688,1726722639498,-500.0,0.00012898,2]
[338535689,1726722639508,-500.0,0.00012898,2]
[338535690,1726722639517,-500.0,0.00012898,2]
[338535691,1726722639527,-500.0,0.00012898,2]
[338535692,1726722639536,-500.0,0.00012898,2]
[338535693,1726722639546,-500.0,0.00012898,2]
[338535694,1726722639556,-500.0,0.00012898,2]
[338535695,1726722639565,-500.0,0.00012898,2]
[338535696,1726722639575,-996.98,0.00012898,2]
[338535697,1726722639584,-500.0,0.00012898,2]
[338535698,1726722639594,-897.04,0.00012898,2]
[338535699,1726722639604,-500.0,0.00012898,2]
[338535700,1726722639613,-1139.55,0.00012898,2]
[338535701,1726722639622,-500.0,0.00012898,2]
[338535702,1726722639632,-500.0,0.00012898,2]
[338535703,1726722639641,-500.0,0.00012898,2]
[338535704,1726722639652,-500.0,0.00012898,2]
[338535705,1726722639662,-500.0,0.00012898,2]
[338535706,1726722639672,-5184.52,0.00012898,2]
[338535707,1726722639681,-508.97,0.00012898,2]
[338535708,1726722639691,-500.0,0.00012898,2]
[338535709,1726722639700,-500.0,0.00012898,2]
[338535710,1726722639709,-500.0,0.00012898,2]
[338535711,1726722639719,-500.0,0.00012898,2]
[338535712,1726722639728,-1495.93,0.00012898,2]
[338535713,1726722639737,-500.0,0.00012898,2]
[338535714,1726722639746,-500.0,0.00012898,2]
[338535715,1726722639756,-798.64,0.00012898,2]
[338535716,1726722639765,-500.0,0.00012898,2]
[338535717,1726722639774,-571.55,0.00012898,2]
[338535718,1726722639784,-500.0,0.00012898,2]
[338535719,1726722639794,-1046.15,0.00012898,2]
[338535720,1726722639803,-500.0,0.00012898,2]
[338535721,1726722639812,-500.0,0.00012898,2]
[338535722,1726722639822,-500.0,0.00012898,2]
[338535723,1726722639831,-500.0,0.00012898,2]
[338535724,1726722639840,-500.0,0.00012898,2]
[338535725,1726722639850,-984.64,0.00012898,2]
[338535726,1726722639860,-500.0,0.00012898,2]
[338535727,1726722639869,-500.0,0.00012898,2]
[338535728,1726722639878,-500.0,0.00012898,2]
[338535729,1726722639887,-500.0,0.00012898,2]
[338535730,1726722639897,-1249.32,0.00012898,2]
[338535731,1726722639912,-691.13,0.00012898,2]
[338535732,1726722639922,-500.0,0.00012898,2]
[338535733,1726722639932,-1783.36,0.00012898,2]
[338535734,1726722639941,-1241.91,0.00012898,2]
[338535735,1726722639951,-1130.45,0.00012898,2]
[338535737,1726722639961,-1007.93,0.00012898,2]
[338535739,1726722639970,-500.0,0.00012898,2]
[338535741,1726722639980,-500.29299817,0.00012898,2]
[338535743,1726722639989,-1124.31,0.00012898,2]
[338535745,1726722639998,-2338.08,0.00012898,2]
[338535746,1726722640007,-626.81,0.00012898,2]
[338535748,1726722640016,-500.0,0.00012898,2]
[338535750,1726722640026,-1266.83,0.00012898,2]
[338535752,1726722640036,-500.0,0.00012898,2]
[338535754,1726722640046,-500.0,0.00012898,2]